Workbook

Sheet Info
A1: Contract Information Sheet
A3: Complete the following information and it will be populated on every exhibit.
A5: Joint Venture / Team:
A7: Lead Partner:
A9: 2nd Partner:
A11: 3rd Partner:
A13: Contract Number:
A15: Proposal Date:
A20: Exhibit Pointers | B20: Editable cells in each exhibit are underlined in red
B22: Notes and guidance for each exhibit are on the right of the exhibits in yellow text boxes
B24: A full set of instructions to complete the exhibits is available on the Tollway's website

Sheet Exhibit A
A1: Contract Number: | B1: =+Info!$B$13 -> 0 | H1: Joint Venture / Team: | I1: =+Info!$B$5 -> 0
B4: EXHIBIT A: ESTIMATED TASK WORK HOURS
M5: Grand Total Exhibit A Hours | N5: =SUM(N29,N56,N83,N110,N137,N164,N191,N218,N245,N272,N299,N326,N353,N380,N407,N434,N461,N488,N515,N542) -> 0
N6: TOTAL
B7: MONTHS of YEAR | I7: 2018 | N7: HOURS
A8: TASK | B8: Jan | C8: Feb | D8: Mar | E8: Apr | F8: May | G8: Jun | H8: Jul | I8: Aug | J8: Sep | K8: Oct | L8: Nov | M8: Dec
N9: =IF(SUM(B9:M9)>0,SUM(B9:M9),"") -> 
N10: =IF(SUM(B10:M10)>0,SUM(B10:M10),"") -> 
N11: =IF(SUM(B11:M11)>0,SUM(B11:M11),"") -> 
A29: TOTALS | B29: =IF(SUM(B9:B28)>0,SUM(B9:B28),"") ->  | C29: =IF(SUM(C9:C28)>0,SUM(C9:C28),"") ->  | N29: =SUM(B29:M29) -> 0
B31: EXHIBIT A: ESTIMATED TASK WORK HOURS
N33: TOTAL
B34: MONTHS of YEAR | I34: =I7+1 -> 2019 | N34: HOURS
A35: TASK | B35: Jan | C35: Feb | D35: Mar | E35: Apr | F35: May | G35: Jun | H35: Jul | I35: Aug | J35: Sep | K35: Oct | L35: Nov | M35: Dec
N36: =IF(SUM(B36:M36)>0,SUM(B36:M36),"") -> 
N37: =IF(SUM(B37:M37)>0,SUM(B37:M37),"") -> 
N38: =IF(SUM(B38:M38)>0,SUM(B38:M38),"") -> 
A56: TOTALS | B56: =IF(SUM(B36:B55)>0,SUM(B36:B55),"") ->  | C56: =IF(SUM(C36:C55)>0,SUM(C36:C55),"") ->  | N56: =SUM(B56:M56) -> 0
B58: EXHIBIT A: ESTIMATED TASK WORK HOURS
N60: TOTAL
B61: MONTHS of YEAR | I61: =I34+1 -> 2020 | N61: HOURS
A62: TASK | B62: Jan | C62: Feb | D62: Mar | E62: Apr | F62: May | G62: Jun | H62: Jul | I62: Aug | J62: Sep | K62: Oct | L62: Nov | M62: Dec
N63: =IF(SUM(B63:M63)>0,SUM(B63:M63),"") -> 
N64: =IF(SUM(B64:M64)>0,SUM(B64:M64),"") -> 
N65: =IF(SUM(B65:M65)>0,SUM(B65:M65),"") -> 
A83: TOTALS | B83: =IF(SUM(B63:B82)>0,SUM(B63:B82),"") ->  | C83: =IF(SUM(C63:C82)>0,SUM(C63:C82),"") ->  | N83: =SUM(B83:M83) -> 0
B85: EXHIBIT A: ESTIMATED TASK WORK HOURS
N87: TOTAL
B88: MONTHS of YEAR | I88: =I61+1 -> 2021 | N88: HOURS
A89: TASK | B89: Jan | C89: Feb | D89: Mar | E89: Apr | F89: May | G89: Jun | H89: Jul | I89: Aug | J89: Sep | K89: Oct | L89: Nov | M89: Dec
N90: =IF(SUM(B90:M90)>0,SUM(B90:M90),"") -> 
N91: =IF(SUM(B91:M91)>0,SUM(B91:M91),"") -> 
N92: =IF(SUM(B92:M92)>0,SUM(B92:M92),"") -> 
A110: TOTALS | B110: =IF(SUM(B90:B109)>0,SUM(B90:B109),"") ->  | C110: =IF(SUM(C90:C109)>0,SUM(C90:C109),"") ->  | N110: =SUM(B110:M110) -> 0
B112: EXHIBIT A: ESTIMATED TASK WORK HOURS
N114: TOTAL
B115: MONTHS of YEAR | I115: =I88+1 -> 2022 | N115: HOURS
A116: TASK | B116: Jan | C116: Feb | D116: Mar | E116: Apr | F116: May | G116: Jun | H116: Jul | I116: Aug | J116: Sep | K116: Oct | L116: Nov | M116: Dec
N117: =IF(SUM(B117:M117)>0,SUM(B117:M117),"") -> 
N118: =IF(SUM(B118:M118)>0,SUM(B118:M118),"") -> 
N119: =IF(SUM(B119:M119)>0,SUM(B119:M119),"") -> 
A137: TOTALS | B137: =IF(SUM(B117:B136)>0,SUM(B117:B136),"") ->  | C137: =IF(SUM(C117:C136)>0,SUM(C117:C136),"") ->  | N137: =SUM(B137:M137) -> 0
B139: EXHIBIT A: ESTIMATED TASK WORK HOURS
N141: TOTAL
B142: MONTHS of YEAR | I142: =I115+1 -> 2023 | N142: HOURS
A143: TASK | B143: Jan | C143: Feb | D143: Mar | E143: Apr | F143: May | G143: Jun | H143: Jul | I143: Aug | J143: Sep | K143: Oct | L143: Nov | M143: Dec
N144: =IF(SUM(B144:M144)>0,SUM(B144:M144),"") -> 
N145: =IF(SUM(B145:M145)>0,SUM(B145:M145),"") -> 
N146: =IF(SUM(B146:M146)>0,SUM(B146:M146),"") -> 
A164: TOTALS | B164: =IF(SUM(B144:B163)>0,SUM(B144:B163),"") ->  | C164: =IF(SUM(C144:C163)>0,SUM(C144:C163),"") ->  | N164: =SUM(B164:M164) -> 0
B166: EXHIBIT A: ESTIMATED TASK WORK HOURS
N168: TOTAL
B169: MONTHS of YEAR | I169: =I142+1 -> 2024 | N169: HOURS
A170: TASK | B170: Jan | C170: Feb | D170: Mar | E170: Apr | F170: May | G170: Jun | H170: Jul | I170: Aug | J170: Sep | K170: Oct | L170: Nov | M170: Dec
N171: =IF(SUM(B171:M171)>0,SUM(B171:M171),"") -> 
N172: =IF(SUM(B172:M172)>0,SUM(B172:M172),"") -> 
N173: =IF(SUM(B173:M173)>0,SUM(B173:M173),"") -> 
A191: TOTALS | B191: =IF(SUM(B171:B190)>0,SUM(B171:B190),"") ->  | C191: =IF(SUM(C171:C190)>0,SUM(C171:C190),"") ->  | N191: =SUM(B191:M191) -> 0
B193: EXHIBIT A: ESTIMATED TASK WORK HOURS
N195: TOTAL
B196: MONTHS of YEAR | I196: =I169+1 -> 2025 | N196: HOURS
A197: TASK | B197: Jan | C197: Feb | D197: Mar | E197: Apr | F197: May | G197: Jun | H197: Jul | I197: Aug | J197: Sep | K197: Oct | L197: Nov | M197: Dec
N198: =IF(SUM(B198:M198)>0,SUM(B198:M198),"") -> 
N199: =IF(SUM(B199:M199)>0,SUM(B199:M199),"") -> 
N200: =IF(SUM(B200:M200)>0,SUM(B200:M200),"") -> 
A218: TOTALS | B218: =IF(SUM(B198:B217)>0,SUM(B198:B217),"") ->  | C218: =IF(SUM(C198:C217)>0,SUM(C198:C217),"") ->  | N218: =SUM(B218:M218) -> 0
B220: EXHIBIT A: ESTIMATED TASK WORK HOURS
N222: TOTAL
B223: MONTHS of YEAR | I223: =I196+1 -> 2026 | N223: HOURS
A224: TASK | B224: Jan | C224: Feb | D224: Mar | E224: Apr | F224: May | G224: Jun | H224: Jul | I224: Aug | J224: Sep | K224: Oct | L224: Nov | M224: Dec
N225: =IF(SUM(B225:M225)>0,SUM(B225:M225),"") -> 
N226: =IF(SUM(B226:M226)>0,SUM(B226:M226),"") -> 
N227: =IF(SUM(B227:M227)>0,SUM(B227:M227),"") -> 
A245: TOTALS | B245: =IF(SUM(B225:B244)>0,SUM(B225:B244),"") ->  | C245: =IF(SUM(C225:C244)>0,SUM(C225:C244),"") ->  | N245: =SUM(B245:M245) -> 0
B247: EXHIBIT A: ESTIMATED TASK WORK HOURS
N249: TOTAL
B250: MONTHS of YEAR | I250: =I223+1 -> 2027 | N250: HOURS
A251: TASK | B251: Jan | C251: Feb | D251: Mar | E251: Apr | F251: May | G251: Jun | H251: Jul | I251: Aug | J251: Sep | K251: Oct | L251: Nov | M251: Dec
N252: =IF(SUM(B252:M252)>0,SUM(B252:M252),"") -> 
N253: =IF(SUM(B253:M253)>0,SUM(B253:M253),"") -> 
N254: =IF(SUM(B254:M254)>0,SUM(B254:M254),"") -> 
A272: TOTALS | B272: =IF(SUM(B252:B271)>0,SUM(B252:B271),"") ->  | C272: =IF(SUM(C252:C271)>0,SUM(C252:C271),"") ->  | N272: =SUM(B272:M272) -> 0
B274: EXHIBIT A: ESTIMATED TASK WORK HOURS
N276: TOTAL
B277: MONTHS of YEAR | I277: =I250+1 -> 2028 | N277: HOURS
A278: TASK | B278: Jan | C278: Feb | D278: Mar | E278: Apr | F278: May | G278: Jun | H278: Jul | I278: Aug | J278: Sep | K278: Oct | L278: Nov | M278: Dec
N279: =IF(SUM(B279:M279)>0,SUM(B279:M279),"") -> 
N280: =IF(SUM(B280:M280)>0,SUM(B280:M280),"") -> 
N281: =IF(SUM(B281:M281)>0,SUM(B281:M281),"") -> 
A299: TOTALS | B299: =IF(SUM(B279:B298)>0,SUM(B279:B298),"") ->  | C299: =IF(SUM(C279:C298)>0,SUM(C279:C298),"") ->  | N299: =SUM(B299:M299) -> 0
B301: EXHIBIT A: ESTIMATED TASK WORK HOURS
N303: TOTAL
B304: MONTHS of YEAR | I304: =I277+1 -> 2029 | N304: HOURS
A305: TASK | B305: Jan | C305: Feb | D305: Mar | E305: Apr | F305: May | G305: Jun | H305: Jul | I305: Aug | J305: Sep | K305: Oct | L305: Nov | M305: Dec
N306: =IF(SUM(B306:M306)>0,SUM(B306:M306),"") -> 
N307: =IF(SUM(B307:M307)>0,SUM(B307:M307),"") -> 
N308: =IF(SUM(B308:M308)>0,SUM(B308:M308),"") -> 
A326: TOTALS | B326: =IF(SUM(B306:B325)>0,SUM(B306:B325),"") ->  | C326: =IF(SUM(C306:C325)>0,SUM(C306:C325),"") ->  | N326: =SUM(B326:M326) -> 0
B328: EXHIBIT A: ESTIMATED TASK WORK HOURS
N330: TOTAL
B331: MONTHS of YEAR | I331: =I304+1 -> 2030 | N331: HOURS
A332: TASK | B332: Jan | C332: Feb | D332: Mar | E332: Apr | F332: May | G332: Jun | H332: Jul | I332: Aug | J332: Sep | K332: Oct | L332: Nov | M332: Dec
N333: =IF(SUM(B333:M333)>0,SUM(B333:M333),"") -> 
N334: =IF(SUM(B334:M334)>0,SUM(B334:M334),"") -> 
N335: =IF(SUM(B335:M335)>0,SUM(B335:M335),"") -> 
A353: TOTALS | B353: =IF(SUM(B333:B352)>0,SUM(B333:B352),"") ->  | C353: =IF(SUM(C333:C352)>0,SUM(C333:C352),"") ->  | N353: =SUM(B353:M353) -> 0
B355: EXHIBIT A: ESTIMATED TASK WORK HOURS
N357: TOTAL
B358: MONTHS of YEAR | I358: =I331+1 -> 2031 | N358: HOURS
A359: TASK | B359: Jan | C359: Feb | D359: Mar | E359: Apr | F359: May | G359: Jun | H359: Jul | I359: Aug | J359: Sep | K359: Oct | L359: Nov | M359: Dec
N360: =IF(SUM(B360:M360)>0,SUM(B360:M360),"") -> 
N361: =IF(SUM(B361:M361)>0,SUM(B361:M361),"") -> 
N362: =IF(SUM(B362:M362)>0,SUM(B362:M362),"") -> 
A380: TOTALS | B380: =IF(SUM(B360:B379)>0,SUM(B360:B379),"") ->  | C380: =IF(SUM(C360:C379)>0,SUM(C360:C379),"") ->  | N380: =SUM(B380:M380) -> 0
B382: EXHIBIT A: ESTIMATED TASK WORK HOURS
N384: TOTAL
B385: MONTHS of YEAR | I385: =I358+1 -> 2032 | N385: HOURS
A386: TASK | B386: Jan | C386: Feb | D386: Mar | E386: Apr | F386: May | G386: Jun | H386: Jul | I386: Aug | J386: Sep | K386: Oct | L386: Nov | M386: Dec
N387: =IF(SUM(B387:M387)>0,SUM(B387:M387),"") -> 
N388: =IF(SUM(B388:M388)>0,SUM(B388:M388),"") -> 
N389: =IF(SUM(B389:M389)>0,SUM(B389:M389),"") -> 
A407: TOTALS | B407: =IF(SUM(B387:B406)>0,SUM(B387:B406),"") ->  | C407: =IF(SUM(C387:C406)>0,SUM(C387:C406),"") ->  | N407: =SUM(B407:M407) -> 0
B409: EXHIBIT A: ESTIMATED TASK WORK HOURS
N411: TOTAL
B412: MONTHS of YEAR | I412: =I385+1 -> 2033 | N412: HOURS
A413: TASK | B413: Jan | C413: Feb | D413: Mar | E413: Apr | F413: May | G413: Jun | H413: Jul | I413: Aug | J413: Sep | K413: Oct | L413: Nov | M413: Dec
N414: =IF(SUM(B414:M414)>0,SUM(B414:M414),"") -> 
N415: =IF(SUM(B415:M415)>0,SUM(B415:M415),"") -> 
N416: =IF(SUM(B416:M416)>0,SUM(B416:M416),"") -> 
A434: TOTALS | B434: =IF(SUM(B414:B433)>0,SUM(B414:B433),"") ->  | C434: =IF(SUM(C414:C433)>0,SUM(C414:C433),"") ->  | N434: =SUM(B434:M434) -> 0
B436: EXHIBIT A: ESTIMATED TASK WORK HOURS
N438: TOTAL
B439: MONTHS of YEAR | I439: =I412+1 -> 2034 | N439: HOURS
A440: TASK | B440: Jan | C440: Feb | D440: Mar | E440: Apr | F440: May | G440: Jun | H440: Jul | I440: Aug | J440: Sep | K440: Oct | L440: Nov | M440: Dec
N441: =IF(SUM(B441:M441)>0,SUM(B441:M441),"") -> 
N442: =IF(SUM(B442:M442)>0,SUM(B442:M442),"") -> 
N443: =IF(SUM(B443:M443)>0,SUM(B443:M443),"") -> 
A461: TOTALS | B461: =IF(SUM(B441:B460)>0,SUM(B441:B460),"") ->  | C461: =IF(SUM(C441:C460)>0,SUM(C441:C460),"") ->  | N461: =SUM(B461:M461) -> 0
B463: EXHIBIT A: ESTIMATED TASK WORK HOURS
N465: TOTAL
B466: MONTHS of YEAR | I466: =I439+1 -> 2035 | N466: HOURS
A467: TASK | B467: Jan | C467: Feb | D467: Mar | E467: Apr | F467: May | G467: Jun | H467: Jul | I467: Aug | J467: Sep | K467: Oct | L467: Nov | M467: Dec
N468: =IF(SUM(B468:M468)>0,SUM(B468:M468),"") -> 
N469: =IF(SUM(B469:M469)>0,SUM(B469:M469),"") -> 
N470: =IF(SUM(B470:M470)>0,SUM(B470:M470),"") -> 
A488: TOTALS | B488: =IF(SUM(B468:B487)>0,SUM(B468:B487),"") ->  | C488: =IF(SUM(C468:C487)>0,SUM(C468:C487),"") ->  | N488: =SUM(B488:M488) -> 0
B490: EXHIBIT A: ESTIMATED TASK WORK HOURS
N492: TOTAL
B493: MONTHS of YEAR | I493: =I466+1 -> 2036 | N493: HOURS
A494: TASK | B494: Jan | C494: Feb | D494: Mar | E494: Apr | F494: May | G494: Jun | H494: Jul | I494: Aug | J494: Sep | K494: Oct | L494: Nov | M494: Dec
N495: =IF(SUM(B495:M495)>0,SUM(B495:M495),"") -> 
N496: =IF(SUM(B496:M496)>0,SUM(B496:M496),"") -> 
N497: =IF(SUM(B497:M497)>0,SUM(B497:M497),"") -> 
A515: TOTALS | B515: =IF(SUM(B495:B514)>0,SUM(B495:B514),"") ->  | C515: =IF(SUM(C495:C514)>0,SUM(C495:C514),"") ->  | N515: =SUM(B515:M515) -> 0
B517: EXHIBIT A: ESTIMATED TASK WORK HOURS
N519: TOTAL
B520: MONTHS of YEAR | I520: =I493+1 -> 2037 | N520: HOURS
A521: TASK | B521: Jan | C521: Feb | D521: Mar | E521: Apr | F521: May | G521: Jun | H521: Jul | I521: Aug | J521: Sep | K521: Oct | L521: Nov | M521: Dec
N522: =IF(SUM(B522:M522)>0,SUM(B522:M522),"") -> 
N523: =IF(SUM(B523:M523)>0,SUM(B523:M523),"") -> 
N524: =IF(SUM(B524:M524)>0,SUM(B524:M524),"") -> 
A542: TOTALS | B542: =IF(SUM(B522:B541)>0,SUM(B522:B541),"") ->  | C542: =IF(SUM(C522:C541)>0,SUM(C522:C541),"") ->  | N542: =SUM(B542:M542) -> 0

Sheet Exhibit B (JV-Team)
A1: Contract No.: | B1: =+Info!$B$13 -> 0 | E1: Joint Venture / Team: | F1: =+Info!B5 -> 0
A4: EXHIBIT B: FEE CALCULATIONS
A8: A. DIRECT LABOR (without overtime)
C10: =SUM('Exhibit B (Lead)'!C10,'Exhibit B (2nd)'!C10,'Exhibit B (3rd)'!C10) -> 0 | G10: TOTAL DIRECT SALARY
C11: (Total Work Hours of JV/Team) | E11: (Average Hourly Rate )
B13: Multiplier to be used on this project:
B14: Allowable Multiplier = (2.8 DSE) (2.5 or 2.8 CM) (2.5 PMO)
G15: DIRECT REGULAR SALARY TIMES MULTIPLIER | H15: =+H13*H10 -> 0
A19: B. REIMBURSABLE DIRECT COSTS NOT ELIGIBLE FOR PROFIT
B20: (Total for Joint Venture/Team listed above.)
C22: TOTAL DIRECT COSTS | H22: ='Exhibit B (Lead)'!H22+'Exhibit B (2nd)'!H22+'Exhibit B (3rd)'!H22 -> 0
A25: C. SERVICES BY OTHERS
F27: Total Allowable Fee DBE/MBE/WBE Subconsultant (from Exhibit H) | G27: =+'Exhibit H'!O56 -> 0
F29: Total Allowable Fee Non-DBE/MBE/WBE Subconsultant (from Exhibit H (cont)) | G29: =+'Exhibit H (Cont)'!O49 -> 0
C31: TOTAL SERVICES BY OTHERS | H31: =+G27+G29 -> 0
A34: D. ADDITIONAL SERVICES (Prime Consultant)
G35: (Requires prior authorization before use)
A36: ADDITIONAL SERVICES (Subconsultants)
G37: (Requires prior authorization before use)
C38: TOTAL ADDITIONAL SERVICES | H38: =SUM(G34:G36) -> 0
G39: (Requires prior authorization before use)
A41: E. MAXIMUM ALLOWABLE FEE (Upper Limit of Compensation) | H41: =SUM(H15:H38) -> 0

Sheet Exhibit B (Lead)
A1: Contract No.: | B1: =+Info!$B$13 -> 0 | E1: Lead Partner: | F1: =Info!B7 -> 0
A4: EXHIBIT B: FEE CALCULATIONS
A8: A. DIRECT LABOR (without overtime)
G10: TOTAL DIRECT SALARY
C11: (Total Work Hours from Exhibit A) | E11: (Average Hourly Rate )
B13: Multiplier to be used on this project:
B14: Allowable Multiplier = (2.8 DSE) (2.5 or 2.8 CM) (2.5 PMO)
G15: DIRECT REGULAR SALARY TIMES MULTIPLIER | H15: =+H13*H10 -> 0
A19: B. REIMBURSABLE DIRECT COSTS NOT ELIGIBLE FOR PROFIT
B20: (Total for Joint Venture/Team listed above.)
C22: TOTAL DIRECT COSTS | H22: ='Exhibit D (Lead)'!H38 -> 0
A25: C. SERVICES BY OTHERS
F27: Total Allowable Fee DBE/MBE/WBE Subconsultant (from Exhibit H) | G27: See JV Summary
F29: Total Allowable Fee Non-DBE/MBE/WBE Subconsultant (from Exhibit H (cont)) | G29: See JV Summary
C31: TOTAL SERVICES BY OTHERS | H31: See JV Summary
A34: D. ADDITIONAL SERVICES (Prime Consultant) | G34: See JV Summary
G35: (Requires prior authorization before use)
A36: ADDITIONAL SERVICES (Subconsultants) | G36: See JV Summary
G37: (Requires prior authorization before use)
C38: TOTAL ADDITIONAL SERVICES | H38: See JV Summary
G39: (Requires prior authorization before use)
A41: E. MAXIMUM ALLOWABLE FEE (Upper Limit of Compensation) | H41: =SUM(H15:H38) -> 0

Sheet Exhibit B (2nd)
A1: Contract No.: | B1: =+Info!$B$13 -> 0 | E1: 2nd Partner: | F1: =Info!B9 -> 0
A4: EXHIBIT B: FEE CALCULATIONS
A8: A. DIRECT LABOR (without overtime)
G10: TOTAL DIRECT SALARY
C11: (Total Work Hours from Exhibit A) | E11: (Average Hourly Rate )
B13: Multiplier to be used on this project:
B14: Allowable Multiplier = (2.8 DSE) (2.5 or 2.8 CM) (2.5 PMO)
G15: DIRECT REGULAR SALARY TIMES MULTIPLIER | H15: =+H13*H10 -> 0
A19: B. REIMBURSABLE DIRECT COSTS NOT ELIGIBLE FOR PROFIT
B20: (Total for Joint Venture/Team listed above.)
C22: TOTAL DIRECT COSTS | H22: ='Exhibit D (2nd)'!H38 -> 0
A25: C. SERVICES BY OTHERS
F27: Total Allowable Fee DBE/MBE/WBE Subconsultant (from Exhibit H) | G27: See JV Summary
F29: Total Allowable Fee Non-DBE/MBE/WBE Subconsultant (from Exhibit H (cont)) | G29: See JV Summary
C31: TOTAL SERVICES BY OTHERS | H31: See JV Summary
A34: D. ADDITIONAL SERVICES (Prime Consultant) | G34: See JV Summary
G35: (Requires prior authorization before use)
A36: ADDITIONAL SERVICES (Subconsultants) | G36: See JV Summary
G37: (Requires prior authorization before use)
C38: TOTAL ADDITIONAL SERVICES | H38: See JV Summary
G39: (Requires prior authorization before use)
A41: E. MAXIMUM ALLOWABLE FEE (Upper Limit of Compensation) | H41: =SUM(H15:H38) -> 0

Sheet Exhibit B (3rd)
A1: Contract No.: | B1: =+Info!$B$13 -> 0 | E1: 3rd Partner: | F1: =Info!B11 -> 0
A4: EXHIBIT B: FEE CALCULATIONS
A8: A. DIRECT LABOR (without overtime)
G10: TOTAL DIRECT SALARY
C11: (Total Work Hours from Exhibit A) | E11: (Average Hourly Rate )
B13: Multiplier to be used on this project:
B14: Allowable Multiplier = (2.8 DSE) (2.5 or 2.8 CM) (2.5 PMO)
G15: DIRECT REGULAR SALARY TIMES MULTIPLIER | H15: =+H13*H10 -> 0
A19: B. REIMBURSABLE DIRECT COSTS NOT ELIGIBLE FOR PROFIT
B20: (Total for Joint Venture/Team listed above.)
C22: TOTAL DIRECT COSTS | H22: ='Exhibit D (3rd)'!H38 -> 0
A25: C. SERVICES BY OTHERS
F27: Total Allowable Fee DBE/MBE/WBE Subconsultant (from Exhibit H) | G27: See JV Summary
F29: Total Allowable Fee Non-DBE/MBE/WBE Subconsultant (from Exhibit H (cont)) | G29: See JV Summary
C31: TOTAL SERVICES BY OTHERS | H31: See JV Summary
A34: D. ADDITIONAL SERVICES (Prime Consultant) | G34: See JV Summary
G35: (Requires prior authorization before use)
A36: ADDITIONAL SERVICES (Subconsultants) | G36: See JV Summary
G37: (Requires prior authorization before use)
C38: TOTAL ADDITIONAL SERVICES | H38: See JV Summary
G39: (Requires prior authorization before use)
A41: E. MAXIMUM ALLOWABLE FEE (Upper Limit of Compensation) | H41: =SUM(H15:H38) -> 0

Sheet Exhibit D (Lead)
A1: Contract No.: | B1: =+Info!B13 -> 0 | D1: Lead Partner: | F1: =Info!B7 -> 0
A4: EXHIBIT D
A5: REIMBURSABLE DIRECT COSTS - WORKSHEET ESTIMATES
A7: A. | B7: VEHICLE REIMBURSEMENT - rate based on link below
B8: http://www2.illinois.gov/cms/Employees/travel/Pages/TravelReimbursement.aspx
A11: B. | B11: ALLOWABLE DIRECT COSTS - based on link below
B12: https://www.illinoistollway.com/documents/20184/238673/LG_TOLLWAY_XX_ALLOWABLEDIRECTCOSTS_12132013.PDF/b3dab352-6ca0-47db-8d7c-db8e8821037b?version=1.0
A14: C. | B14: OVERTIME PREMIUM
A16: D. | B16: ITEMIZED DIRECT COSTS - For any expense not included in the
B17: Allowable Direct Costs list, written permission must be received
B18: from the Chief Engineer prior to its inclusion. List those below:
B20: DIRECT COST CATEGORY
C38: TOTAL DIRECT COSTS (Vehicles, Allowable and Itemized)

Sheet Exhibit D (2nd)
A1: Contract No.: | B1: =+Info!B13 -> 0 | D1: 2nd Partner: | F1: =Info!B9 -> 0
A4: EXHIBIT D
A5: REIMBURSABLE DIRECT COSTS - WORKSHEET ESTIMATES
A7: A. | B7: VEHICLE REIMBURSEMENT - rate based on link below
B8: http://www2.illinois.gov/cms/Employees/travel/Pages/TravelReimbursement.aspx
A11: B. | B11: ALLOWABLE DIRECT COSTS - based on link below
B12: https://www.illinoistollway.com/documents/20184/238673/LG_TOLLWAY_XX_ALLOWABLEDIRECTCOSTS_12132013.PDF/b3dab352-6ca0-47db-8d7c-db8e8821037b?version=1.0
A14: C. | B14: OVERTIME PREMIUM
A16: D. | B16: ITEMIZED DIRECT COSTS - For any expense not included in the
B17: Allowable Direct Costs list, written permission must be received
B18: from the Chief Engineer prior to its inclusion. List those below:
B20: DIRECT COST CATEGORY
C38: TOTAL DIRECT COSTS (Vehicles, Allowable and Itemized)

Sheet Exhibit D (3rd)
A1: Contract No.: | B1: =+Info!B13 -> 0 | D1: 3rd Partner: | F1: =Info!B11 -> 0
A4: EXHIBIT D
A5: REIMBURSABLE DIRECT COSTS - WORKSHEET ESTIMATES
A7: A. | B7: VEHICLE REIMBURSEMENT - rate based on link below
B8: http://www2.illinois.gov/cms/Employees/travel/Pages/TravelReimbursement.aspx
A11: B. | B11: ALLOWABLE DIRECT COSTS - based on link below
B12: https://www.illinoistollway.com/documents/20184/238673/LG_TOLLWAY_XX_ALLOWABLEDIRECTCOSTS_12132013.PDF/b3dab352-6ca0-47db-8d7c-db8e8821037b?version=1.0
A14: C. | B14: OVERTIME PREMIUM
A16: D. | B16: ITEMIZED DIRECT COSTS - For any expense not included in the
B17: Allowable Direct Costs list, written permission must be received
B18: from the Chief Engineer prior to its inclusion. List those below:
B20: DIRECT COST CATEGORY
C38: TOTAL DIRECT COSTS (Vehicles, Allowable and Itemized)

Sheet Exhibit H
A1: Contract No.: | D1: =+Info!B13 -> 0 | J1: Joint Venture / Team: | K1: =+Info!B5 -> 0
A3: EXHIBIT H - SERVICES BY OTHERS
A5: Exhibits A-G must be submitted for each subconsultant listed below. If a subconsultant requires "Services by Others", they must include Exhibit H and attach Exhibits A-G for second tier subconsultants.
A7: DBE/MBE/WBE SUBCONSULTANTS
A9: 1 | I9: 7
C10: Direct Labor | K10: Direct Labor
C11: Direct Costs | K11: Direct Costs | N11: 0
C12: Services by Others | K12: Services by Others | N12: 0
C13: Additional Services ** | K13: Additional Services ** | N13: 0
C14: Total this Subconsultant (ULC) | G14: =SUM(F10:F13) -> 0 | K14: Total this Subconsultant (ULC) | O14: =SUM(N10:N13) -> 0
A16: 2 | I16: 8
C17: Direct Labor | K17: Direct Labor
C18: Direct Costs | K18: Direct Costs | N18: 0
C19: Services by Others | K19: Services by Others | N19: 0
C20: Additional Services ** | K20: Additional Services ** | N20: 0
C21: Total this Subconsultant (ULC) | G21: =SUM(F17:F20) -> 0 | K21: Total this Subconsultant (ULC) | O21: =SUM(N17:N20) -> 0
A23: 3 | I23: 9
C24: Direct Labor | K24: Direct Labor
C25: Direct Costs | F25: 0 | K25: Direct Costs | N25: 0
C26: Services by Others | F26: 0 | K26: Services by Others | N26: 0
C27: Additional Services ** | F27: 0 | K27: Additional Services ** | N27: 0
C28: Total this Subconsultant (ULC) | G28: =SUM(F24:F27) -> 0 | K28: Total this Subconsultant (ULC) | O28: =SUM(N24:N27) -> 0
A30: 4 | I30: 10
C31: Direct Labor | K31: Direct Labor
C32: Direct Costs | F32: 0 | K32: Direct Costs | N32: 0
C33: Services by Others | F33: 0 | K33: Services by Others | N33: 0
C34: Additional Services ** | F34: 0 | K34: Additional Services ** | N34: 0
C35: Total this Subconsultant (ULC) | G35: =SUM(F31:F34) -> 0 | K35: Total this Subconsultant (ULC) | O35: =SUM(N31:N34) -> 0
A37: 5 | I37: 11
C38: Direct Labor | K38: Direct Labor
C39: Direct Costs | F39: 0 | K39: Direct Costs | N39: 0
C40: Services by Others | F40: 0 | K40: Services by Others | N40: 0
C41: Additional Services ** | F41: 0 | K41: Additional Services ** | N41: 0
C42: Total this Subconsultant (ULC) | G42: =SUM(F38:F41) -> 0 | K42: Total this Subconsultant (ULC) | O42: =SUM(N38:N41) -> 0
A44: 6 | I44: 12
C45: Direct Labor | K45: Direct Labor
C46: Direct Costs | F46: 0 | K46: Direct Costs | N46: 0
C47: Services by Others | F47: 0 | K47: Services by Others | N47: 0
C48: Additional Services ** | F48: 0 | K48: Additional Services ** | N48: 0
C49: Total this Subconsultant (ULC) | G49: =SUM(F45:F48) -> 0 | K49: Total this Subconsultant (ULC) | O49: =SUM(N45:N48) -> 0
A52: ** Additional services funds require prior authorization before use | N52: TOTAL DBE/MBE/WBE Subconsultants: | O52: =SUM(O14:O49,G14:G49) -> 0
N54: TOTAL Additional Services DBE/MBE/WBE Subconsultants: | O54: =SUM(N41,N34,N27,N20,N13,F13,F20,F27,F34,F41,F48,N48) -> 0
N56: TOTAL Allowable Fee DBE/MBE/WBE Subconsultants: | O56: =+O52-O54 -> 0
N57: DBE/MBE/WBE Percentage of Total Fee (includes Additional Services): | O57: =IF(O52>1,O52/('Exhibit B (JV-Team)'!H41),"") -> 
N58: DBE/MBE/WBE Percentage of Total Fee (does not include Additional Services): | O58: =IF(O56>1,O56/('Exhibit B (JV-Team)'!H41-'Exhibit B (JV-Team)'!G34),"") -> 

Sheet Exhibit H (Cont)
A1: Project No. | D1: =+Info!B13 -> 0 | J1: Joint Venture / Team: | K1: =+Info!B5 -> 0
A3: EXHIBIT H - SERVICES BY OTHERS (continued)
A5: Exhibits A-G must be submitted for each subconsultant listed below. If a subconsultant requires "Services by Others", they must include Exhibit H and attach Exhibits A-G for second tier subconsultants.
A7: OTHER SUBCONSULTANTS (NOT DBE/MBE/WBE)
A9: 1 | I9: 6
C10: Direct Labor | K10: Direct Labor
C11: Direct Costs | K11: Direct Costs | N11: 0
C12: Services by Others | K12: Services by Others | N12: 0
C13: Additional Services ** | K13: Additional Services ** | N13: 0
C14: Total this Subconsultant (ULC) | G14: =SUM(F10:F13) -> 0 | K14: Total this Subconsultant (ULC) | O14: =SUM(N10:N13) -> 0
A16: 2 | I16: 7
C17: Direct Labor | K17: Direct Labor | N17: 0
C18: Direct Costs | K18: Direct Costs | N18: 0
C19: Services by Others | K19: Services by Others | N19: 0
C20: Additional Services ** | K20: Additional Services ** | N20: 0
C21: Total this Subconsultant (ULC) | G21: =SUM(F17:F20) -> 0 | K21: Total this Subconsultant (ULC) | O21: =SUM(N17:N20) -> 0
A23: 3 | I23: 8
C24: Direct Labor | K24: Direct Labor | N24: 0
C25: Direct Costs | F25: 0 | K25: Direct Costs | N25: 0
C26: Services by Others | F26: 0 | K26: Services by Others | N26: 0
C27: Additional Services ** | F27: 0 | K27: Additional Services ** | N27: 0
C28: Total this Subconsultant (ULC) | G28: =SUM(F24:F27) -> 0 | K28: Total this Subconsultant (ULC) | O28: =SUM(N24:N27) -> 0
A30: 4 | I30: 9
C31: Direct Labor | K31: Direct Labor | N31: 0
C32: Direct Costs | F32: 0 | K32: Direct Costs | N32: 0
C33: Services by Others | F33: 0 | K33: Services by Others | N33: 0
C34: Additional Services ** | F34: 0 | K34: Additional Services ** | N34: 0
C35: Total this Subconsultant (ULC) | G35: =SUM(F31:F34) -> 0 | K35: Total this Subconsultant (ULC) | O35: =SUM(N31:N34) -> 0
A37: 5 | I37: 10
C38: Direct Labor | K38: Direct Labor | N38: 0
C39: Direct Costs | F39: 0 | K39: Direct Costs | N39: 0
C40: Services by Others | F40: 0 | K40: Services by Others | N40: 0
C41: Additional Services ** | F41: 0 | K41: Additional Services ** | N41: 0
C42: Total this Subconsultant (ULC) | G42: =SUM(F38:F41) -> 0 | K42: Total this Subconsultant (ULC) | O42: =SUM(N38:N41) -> 0
A45: ** Additional services funds require prior authorization before use | N45: TOTAL Non-DBE/MBE/WBE Subconsultants: | O45: =SUM(O14:O35,G14:G42) -> 0
N47: TOTAL Additional Services Non-DBE/MBE/WBE Subconsultants: | O47: =SUM(N41,N34,N27,N20,N13,F13,F20,F27,F34,F41) -> 0
N49: TOTAL Allowable Fee Non-DBE/MBE/WBE Subconsultants: | O49: =+O45-O47 -> 0
